Cogmind - Beta 16 --- EXPLORER MODE // 2026.01.16 @ 16:13:03 Player: K.K.Y. Result: Destroyed by JO-II7(j) with Overtuned Pulse Rifle Performance ------------- Evolutions (0) 0 Regions Visited (4) 800 Robots Destroyed (33) 165 Value Destroyed (736) 736 Prototype IDs (13) 260 Alien Tech Used (0) 0 Bonus (-377) -377 TOTAL SCORE: 1584 Bonus ------- Follower Combat Kills 36 Friendly Fire -413 Cogmind --------- Core Integrity 0/250 Matter 230/300 Energy 262/265 System Corruption 2% Temperature Warm (119) Movement Treading (557) Ox5 Location -8/Recycling Parts ------- > --- POWER (1) -------- Improved Ion Engine > --- PROPULSION (2) --- Armored Treads Advanced Treads > --- UTILITY (3) ------ Medium Storage Unit Humpback > --- WEAPON (2) ------- Assault Cannon > --- INVENTORY (35) --- Improved Aluminum Leg Carbon-fiber Leg Improved Heat Sink High-capacity Storage Unit Structural Scanner Sensor Array Improved Terrain Scanner System Shield Makeshift Laser EM Pulse Cannon Ion Cannon Battle Rifle Flak Cannon Mining Laser Heavy Mace Peak State ------------ > --- POWER ------------ Improved Ion Engine > --- PROPULSION ------- Improved Aluminum Leg Carbon-fiber Leg > --- UTILITY ---------- Medium Storage Unit Humpback > --- WEAPON ----------- Minigun Assault Cannon > --- INVENTORY -------- Improved Heat Sink High-capacity Storage Unit Structural Scanner Sensor Array Improved Terrain Scanner Makeshift Laser EM Pulse Cannon Battle Rifle Flak Cannon Mining Laser SUBCON Basin [Rating: 36] Favorites ----------- Power Improved Ion Engine Engine Improved Ion Engine Propulsion Light Treads Treads Light Treads Leg Carbon-fiber Leg Utility Medium Storage Unit Device Bomb Drone Bay Storage Medium Storage Unit Weapon Minigun Ballistic Gun Minigun Ballistic Cannon Assault Cannon Special Weapon Mining Laser Build | -11 -10 -10 -10 -8 ------- Run | Yrd Mat Min Sub Rec Slots Evolved 1 | . 1 . . . Power . | . . . . . Propulsion . | . . . . . Utility 1 | . 1 . . . Weapon . | . . . . . Parts Attached 25 | 7 3 4 7 4 Power 5 | 1 1 1 2 . Engine 5 | 1 1 1 2 . Core . | . . . . . Reactor . | . . . . . Propulsion 8 | 2 . 1 1 4 Treads 6 | 2 . 1 1 2 Leg 2 | . . . . 2 Wheel . | . . . . . Hover . | . . . . . Flight . | . . . . . Utility 6 | 2 1 1 2 . Device 4 | 1 1 1 1 . Storage 2 | 1 . . 1 . Processor . | . . . . . Hackware . | . . . . . Protection . | . . . . . Artifact . | . . . . . Weapon 6 | 2 1 1 2 . Energy Gun . | . . . . . Energy Cannon . | . . . . . Ballistic Gun 4 | 2 . 1 1 . Ballistic Cannon 1 | . . . 1 . Launcher . | . . . . . Special Weapon 1 | . 1 . . . Impact Weapon . | . . . . . Slashing Weapon . | . . . . . Piercing Weapon . | . . . . . Special Melee Weapon . | . . . . . Unidentified Prototypes 1 | . . 1 . . Parts Lost 4 | . . . 3 1 Power . | . . . . . Propulsion 2 | . . . 2 . Utility 1 | . . . 1 . Weapon 1 | . . . . 1 Highest Loss Streak 2 | . . . 2 1 To Critical Strikes . | . . . . . Average Backups 9 | 2 4 8 9 12 Power . | . . 2 . . Propulsion . | . . . . 1 Utility 4 | 1 3 4 4 5 Weapon 3 | . 1 1 3 5 Tool/Special . | . . . . . Unused Backups 10 | . . . 2 8 Power . | . . . . . Propulsion . | . . . . . Utility 4 | . . . 1 3 Weapon 6 | . . . 1 5 Tool/Special . | . . . . . Average Slot Usage (%) 69 | . 93 91 65 68 Engine 12 | . 12 12 12 12 Treads 6 | . 24 25 3 7 Device 3 | . 18 16 2 . Storage 21 | . 12 12 21 25 Ballistic Gun 13 | . 22 25 13 6 Ballistic Cannon 9 | . . . 10 12 Peak Build Rating 36 | 7 10 26 30 36 Average Rating 26 | 5 7 18 27 32 On Entrance 14 | . 7 10 26 30 Avg Prop Armor Cover (%) . | . . . . . Naked Turns . | . . . . . Heaviest Build 225 | 18 23 30 225 225 Greatest Support 42 | 40 40 40 40 42 Greatest Overweight (x) 74 | 1 . . 74 74 Average Overweight (x) 8 | . . . 14 13 Largest Inventory Capacity 35 | 10 10 10 35 35 Average Capacity 27 | 8 10 10 28 35 Most Carried 30 | 5 7 10 24 30 Average Carried 19 | 2 4 8 20 26 Final Capacity 35 | 10 10 10 35 35 Final Carried 24 | 3 7 10 24 15 Class Distribution -------------------- 63% | Hauler-Mutant 29% | Hacker-Mutant 7% | Commander-Mutant Dominant Class ---------------- Hacker-Mutant | -10/Materials Hacker-Mutant | -10/Mines Hauler-Mutant | -10/Subcaves Hauler-Mutant | -8/Recycling Resources | -11 -10 -10 -10 -8 ----------- Run | Yrd Mat Min Sub Rec Matter Collected 1576 | 151 367 82 828 148 Remotely . | . . . . . Salvage Created 909 | 67 303 27 447 65 Parts 76 | 4 30 5 33 4 Haulers Intercepted 2 | . 2 . . . Recyclers Shooed 1 | . 1 . . . Parts Field Recycled . | . . . . . Retrieved Matter . | . . . . . Parts Self-Destructed . | . . . . . Prevented . | . . . . . Parts Restored . | . . . . . Kills | -11 -10 -10 -10 -8 ------- Run | Yrd Mat Min Sub Rec Combat Hostiles Destroyed 21 | . 6 2 11 2 Guns 16 | . 6 2 8 . Cannons 5 | . . . 3 2 Classes Destroyed 11 | 2 4 . 4 1 Builder 3 | . 3 . . . Tunneler 1 | 1 . . . . Hauler 2 | . 2 . . . Recycler 1 | 1 . . . . Watcher 3 | . 3 . . . Swarmer 8 | . 6 2 . . Grunt 2 | . . . 2 . Sentry 1 | . . . 1 . Programmer 2 | . . . . 2 Artisan 2 | . . . 2 . Subdweller 8 | . . . 8 . Thug 2 | . . . 2 . Best Kill Streak 2 | 1 2 2 2 2 Combat Bots Only 2 | . 2 2 2 2 Max Kills in Single Turn 1 | 1 1 1 1 1 Gunslinging . | . . . . . Exploded . | . . . . . Melee . | . . . . . Uniques/NPCs Destroyed . | . . . . . Combat | -11 -10 -10 -10 -8 -------- Run | Yrd Mat Min Sub Rec Hostile Shots Fired 197 | . 31 21 110 35 Missed 55 | . 11 4 31 9 Hits 142 | . 20 17 79 26 Projectile 142 | . 20 17 79 26 AOE 1 | . . . 1 . Critical Strikes 3 | . . . 2 1 Damage Taken 1758 | . 94 107 1272 285 Core 264 | . 15 3 157 89 Absorbed by Shields 42 | . . . . 42 Ignored by Resistances 1090 | . 70 75 750 195 Core Remaining (%) 100 | 100 . . . . Volleys Fired 168 | 5 30 7 112 14 Largest 2 | 2 2 2 2 1 Hottest 120 | 40 120 40 62 37 Shots Fired 320 | 10 60 14 219 17 Gun 269 | 10 56 14 189 . Cannon 47 | . . . 30 17 Launcher . | . . . . . Special 4 | . 4 . . . Kinetic 316 | 10 56 14 219 17 Thermal 4 | . 4 . . . Explosive . | . . . . . Electromagnetic . | . . . . . Robot Hit Streak 35 | 9 13 5 35 28 Robot Miss Streak 2 | . 2 1 1 1 Penetration Max . | . . . . . Secondary Targets 1 | . . . 1 . Max Gunslinging Chain 1 | . . . 1 . Shots Hit Robots 167 | 9 39 9 94 16 Core Hits 54 | 3 18 2 28 3 Critical Kills . | . . . . . Critical Parts Destroyed . | . . . . . Critical Strikes 2 | . . . 2 . Blast 2 | . . . 2 . Melee Attacks . | . . . . . Impact . | . . . . . Slashing . | . . . . . Piercing . | . . . . . Sneak Attacks . | . . . . . Combat Hostiles . | . . . . . Follow-up Attacks . | . . . . . Damage Inflicted 2439 | 109 473 49 1394 414 Guns 1762 | 109 473 49 1131 . Cannons 669 | . . . 260 409 Explosions . | . . . . . Melee . | . . . . . Ramming 8 | . . . 3 5 Kinetic 2431 | 109 473 49 1391 409 Thermal . | . . . . . Explosive . | . . . . . Electromagnetic . | . . . . . Impact . | . . . . . Slashing . | . . . . . Piercing . | . . . . . Highest Corruption 2 | . . . . 2 Average Corruption 1 | . . . . 1 Corruption Purged . | . . . . . Corruption Blocked . | . . . . . Effects 22 | . . . . 22 Message Errors 5 | . . . . 5 Matter Fused 7 | . . . . 7 Heat Flow Errors 2 | . . . . 2 Energy Discharges 3 | . . . . 3 Data Loss (major) 1 | . . . . 1 Misfires 3 | . . . . 3 Alerts 1 | . . . . 1 Overload Shots . | . . . . . Overflow Damage 2 | . . . . 2 Projectiles 2 | . . . . 2 Explosions . | . . . . . Melee . | . . . . . Knockbacks 10 | . . . 4 6 Impact 1 | . . . 1 . Kinetic 9 | . . . 3 6 Secondary . | . . . . . Self-Inflicted Damage . | . . . . . Shots . | . . . . . Rammed 2 | . . . 1 1 Targets Rammed 2 | . . . 1 1 Kicked . | . . . . . Crushed . | . . . . . Highest Temperature 269 | . 40 . 1 269 Average Temperature 72 | . 16 . 1 102 Received Heat Transfer 555 | . . . 399 156 Siege Activations . | . . . . . Martial Activations . | . . . . . Shielding Activations . | . . . . . Robots Disrupted . | . . . . . Combat Hostiles . | . . . . . Robots Corrupted . | . . . . . Combat Hostiles . | . . . . . Parts Fried . | . . . . . Impact Corruptions . | . . . . . Robots Melted . | . . . . . Combat Hostiles . | . . . . . Parts Melted . | . . . . . Heat Transferred . | . . . . . Parts Sabotaged . | . . . . . Parts Stolen . | . . . . . Parts Stripped . | . . . . . Power Chain Reactions . | . . . . . Alert | -11 -10 -10 -10 -8 ------- Run | Yrd Mat Min Sub Rec Maximum Alert Level . | . . . . . Low Security (%) 100 | 100 100 100 . 100 Level 1 . | . . . . . Level 2 . | . . . . . Level 3 . | . . . . . Level 4 . | . . . . . Level 5 . | . . . . . High Security . | . . . . . Max Security . | . . . . . Peak Influence 50 | 5 50 35 . 40 Initial 2 | . 2 . . . Average 1 | 1 4 . . . Influence Increases 414 | 10 215 50 85 54 Destroy 0b10 Robot/C 260 | . 120 40 60 40 Destroy 0b10 Robot/NC 50 | 10 40 . . . Destroy Leader 60 | . 40 10 10 . Successful Hack 20 | . 10 . . 10 Disable Machine 4 | . . . . 4 Destroy Structure 5 | . 5 . . . Lose Combat Pursuer 15 | . . . 15 . Influence Decreases 414 | 5 220 50 85 54 Entered New Map 3 | . 3 . . . Time Decay 396 | 5 217 50 70 54 Lost Ally 15 | . . . 15 . Squads Dispatched 1 | . 1 . . . Investigation 1 | . 1 . . . Extermination . | . . . . . Reinforcement . | . . . . . Assault . | . . . . . Garrison . | . . . . . Intercept . | . . . . . Searches Triggered . | . . . . . Construction Impeded . | . . . . . Haulers Reinforced . | . . . . . Active Scanning Responses . | . . . . . Cargo Convoy Interrupts . | . . . . . Stealth | -11 -10 -10 -10 -8 --------- Run | Yrd Mat Min Sub Rec Distress Signals . | . . . . . Communications Jammed . | . . . . . Distress Signals . | . . . . . Times Spotted 47 | . 9 2 30 6 Peak Tracking Total 12 | . 2 2 12 4 Tactical Retreats 1 | . . . 1 . Traps | -11 -10 -10 -10 -8 ------- Run | Yrd Mat Min Sub Rec Traps Triggered 2 | . 1 1 . . Indirectly . | . . . . . Trap Hack Attempts . | . . . . . Triggered . | . . . . . Disarmed 1 | . 1 . . . Reprogrammed . | . . . . . Reused . | . . . . . Traps Extracted . | . . . . . Installed . | . . . . . Triggered . | . . . . . Machines | -11 -10 -10 -10 -8 ---------- Run | Yrd Mat Min Sub Rec Machines Disabled 2 | . . . 1 1 Max in Single Turn 1 | . . . 1 1 Machines Repaired . | . . . . . Machines Dismantled . | . . . . . Machines Sabotaged . | . . . . . Overloaded Fab Kills . | . . . . . Hacking | -11 -10 -10 -10 -8 --------- Run | Yrd Mat Min Sub Rec Machines Accessed 13 | . 3 2 3 5 Terminals 4 | . 3 . . 1 Fabricators . | . . . . . Repair Stations . | . . . . . Recycling Units 4 | . . . . 4 Scanalyzers . | . . . . . Garrison Access . | . . . . . Total Hacks 23 | . 7 2 4 10 Successful 16 | . 5 2 4 5 Failed 7 | . 2 . . 5 Catastrophic . | . . . . . Database Lockouts . | . . . . . Manual 4 | . 4 . . . Terminals 10 | . 7 . . 3 Fabricators . | . . . . . Repair Stations . | . . . . . Recycling Units 7 | . . . . 7 Scanalyzers . | . . . . . Garrison Access . | . . . . . Terminal Hacks 9 | . 2 2 4 1 Record 1 | . . . 1 . Robot Analysis 1 | . . . . 1 Open Door 3 | . . 2 1 . Disarm Traps 2 | . 2 . . . Proto ID Catalog 1 | . . . 1 . Release Object 1 | . . . 1 . Fabricator Hacks . | . . . . . Repair Station Hacks . | . . . . . Recycling Unit Hacks 4 | . . . . 4 Retrieve Components 4 | . . . . 4 Scanalyzer . | . . . . . Garrison Access Hacks . | . . . . . Unauthorized Hacks 3 | . 3 . . . Terminals 3 | . 3 . . . Botnet 3 | . 3 . . . Fabricators . | . . . . . Repair Stations . | . . . . . Recycling Units . | . . . . . Scanalyzers . | . . . . . Garrison Access . | . . . . . Data Cores Recovered . | . . . . . Used . | . . . . . Hacking Detections 4 | . 2 . . 2 Full Trace Events 3 | . 1 . . 2 Feedback Events . | . . . . . Feedback Blocked . | . . . . . Robot Schematics Acquired . | . . . . . Robots Built . | . . . . . Authchips . | . . . . . Time . | . . . . . Total Robot Build Rating . | . . . . . Part Schematics Acquired . | . . . . . Parts Built . | . . . . . Authchips . | . . . . . Time . | . . . . . Total Part Build Rating . | . . . . . Part Studies Acquired . | . . . . . Parts Repaired . | . . . . . Time . | . . . . . Parts Recycled . | . . . . . Recycled Matter . | . . . . . Retrieved Matter . | . . . . . Retrieved Components 7 | . . . . 7 Parts Scanalyzed . | . . . . . Part Schematics Acquired . | . . . . . Parts Damaged . | . . . . . Bothacking | -11 -10 -10 -10 -8 ------------ Run | Yrd Mat Min Sub Rec Used RIF Installer . | . . . . . Robots Hacked . | . . . . . Non-combat . | . . . . . Combat . | . . . . . Robot Hacks Applied . | . . . . . Relay Couplers Released . | . . . . . Fabnet Peak Effective % . | . . . . . Robots Rewired 12 | . . . . 12 Allies Hacked . | . . . . . Hacks Repelled . | . . . . . Allies | -11 -10 -10 -10 -8 -------- Run | Yrd Mat Min Sub Rec Total Allies 12 | . . . . 12 Largest Group 12 | . . . . 12 Highest-Rated Group 176 | . . . . 176 Highest-Rated Ally 27 | . . . . 27 Total Orders 1 | . . . 1 . RETURN 1 | . . . 1 . Ally Attacks 23 | . . . 10 13 Total Damage 153 | . . . . 153 Kills 2 | . . . . 2 Allies Corrupted . | . . . . . Allies Melted . | . . . . . Intel | -11 -10 -10 -10 -8 ------- Run | Yrd Mat Min Sub Rec Active Infowar (turns) 1553 | 52 1072 429 . . Sensors 1552 | 52 1072 428 . . Structural 998 | . 569 429 . . Robot Analysis Total 1 | . . . . 1 Derelict Logs Recovered 2 | . . 1 1 . Drone Launches 15 | . . . 15 . Drone Recoveries 5 | . . . 5 . Exploration | -11 -10 -10 -10 -8 ------------- Run | Yrd Mat Min Sub Rec Turns Passed 20453 | 77 1072 1316 14659 3329 Spaces Moved 3406 | 42 592 792 1664 316 Core 649 | 20 . . 603 26 Treads 2658 | 22 592 792 1061 191 Legs 99 | . . . . 99 Wheels . | . . . . . Hover . | . . . . . Flight . | . . . . . Fastest Speed 50 | 50 160 160 165 557 Average Speed 580 | 112 160 160 857 1024 Slowest Speed 3750 | 160 160 165 3750 3750 Overloaded Moves . | . . . . . Propulsion Burnouts . | . . . . . Robots Hopped . | . . . . . Potential Cave-ins . | . . . . . Cave-ins Triggered . | . . . . . Exploration Rate (%) 67 | 4 95 99 74 65 Regions Visited 4 Branch Regions 3 Pre-discovered Areas . | . . . . . Known Exits Taken 4 | 1 1 1 1 . Unknown Exits Taken . | . . . . . Scrap Searched 8 | . . 1 7 . Spaces Dug 5 | . 4 . 1 . Terrain Destroyed 6 | . 4 . 2 . Melee . | . . . . . Projectile 6 | . 4 . 2 . AOE . | . . . . . Terrain Rammed . | . . . . . Walls Destroyed . | . . . . . Machines Disabled . | . . . . . Actions | -11 -10 -10 -10 -8 --------- Run | Yrd Mat Min Sub Rec Total 3828 | 60 648 822 1907 391 Wait 136 | . 14 11 107 4 Move 3402 | 41 591 791 1663 316 Hop . | . . . . . Pick Up 34 | 7 7 4 8 8 Fast Attach 3 | 3 . . . . Attach 12 | 4 2 1 2 3 Detach 2 | . . 1 . 1 Swap 12 | . 3 3 5 1 Drop 15 | . 1 4 9 1 Fire 168 | 5 30 7 112 14 Melee . | . . . . . Ram . | . . . . . Kick . | . . . . . Crush 2 | . . . 1 1 Escape Stasis . | . . . . . Rewire 42 | . . . . 42 Trap . | . . . . . Miscellaneous . | . . . . . Route ------- -11/Scrapyard -10/Materials (discovered 5 exits: *Mat x3 / *Min / *Sub) -10/Mines (discovered 3 exits: *Mat x2 / *Sub) -10/Subcaves (discovered 3 exits: *Mat x2 / *Rec) -8/Recycling History --------- Turn | Location | Event 2 | -11/Scrapyard | Met Revision 17 11 | -11/Scrapyard | Identified exit to Materials 11 | -11/Scrapyard | Discovered exit to Materials (range 15) 78 | -11/Scrapyard | Entered Materials 78 | -10/Materials | Evolved 1 slot: Utility x1 206 | -10/Materials | Identified exit to Materials 206 | -10/Materials | Discovered exit to Materials (range 13) 307 | -10/Materials | Build established: Hacker-Mutant 520 | -10/Materials | Identified exit to Subcaves 520 | -10/Materials | Discovered exit to Subcaves (range 9) 887 | -10/Materials | Discovered exit to Materials (range 8) 1029 | -10/Materials | Discovered exit to Materials (range 15) 1126 | -10/Materials | Identified exit to Mines 1126 | -10/Materials | Discovered exit to Mines (range 13) 1150 | -10/Materials | Entered Mines 1150 | -10/Mines | Discovered exit to Materials (range 10) 1344 | -10/Mines | Discovered exit to Subcaves (range 8) 1570 | -10/Mines | Found the Drone Emporium 1577 | -10/Mines | Found Prototype Device 1580 | -10/Mines | Identified Bomb Drone Bay 2164 | -10/Mines | Learned Materials terminal intel 2178 | -10/Mines | Discovered exit to Materials (range 8) 2198 | -10/Mines | Met a Derelict who couldn't figure out how to use a Trap Extractor 2466 | -10/Mines | Entered Subcaves 2467 | -10/Subcaves | Approached by a straggling Scientist 2550 | -10/Subcaves | Learned location of 1 exit from Materials 2610 | -10/Subcaves | Ambushed by swarm of Subdwellers 2610 | -10/Subcaves | Ambushed by Subdwellers from Twisted Machinery 2610 | -10/Subcaves | Ambushed by Subdwellers from Twisted Machinery 2610 | -10/Subcaves | Ambushed by Subdwellers from Twisted Machinery 2610 | -10/Subcaves | Ambushed by Subdwellers from Twisted Machinery 2610 | -10/Subcaves | Ambushed by Subdwellers from Twisted Machinery 2610 | -10/Subcaves | Ambushed by Subdwellers from Twisted Machinery 2649 | -10/Subcaves | Lost 5 allies 2678 | -10/Subcaves | Shifting Twisted Machinery released Shrapnel Trap 2843 | -10/Subcaves | Identified exit to Materials 2843 | -10/Subcaves | Discovered exit to Materials (range 11) 3005 | -10/Subcaves | Visited 4L-MR0's lab 3142 | -10/Subcaves | Discovered exit to Materials (range 6) 3410 | -10/Subcaves | Identified exit to Recycling 3410 | -10/Subcaves | Discovered exit to Recycling (range 17) 3449 | -10/Subcaves | Lost 4 allies 3954 | -10/Subcaves | Shifting Twisted Machinery released Sub. Machine Gun 3957 | -10/Subcaves | Shifting Twisted Machinery released Sub. Beam Cannon 4285 | -10/Subcaves | A swath of the cavern ceiling suddenly collapsed 4559 | -10/Subcaves | Ambushed by angry Subdweller bent on revenge 4645 | -10/Subcaves | Core integrity fell below 50% 6023 | -10/Subcaves | Found SUBCON Basin 6309 | -10/Subcaves | Build established: Hauler-Mutant 17125 | -10/Subcaves | Entered Recycling 19265 | -8/Recycling | Build established: Commander-Mutant 20325 | -8/Recycling | Scanned before Scraplab entrance 20409 | -8/Recycling | Entered Scraplab 20422 | -8/Recycling | Angered Scraplab inhabitants 20432 | -8/Recycling | Core integrity fell below 20% 20454 | -8/Recycling | Destroyed by JO-II7(j) with Overtuned Pulse Rifle Last Messages --------------- 20426_ Dropped SUBCON Basin. 20426_ Savior 3a destroyed. 20426_ Trooper 3a destroyed. 20427_ Tech Extrapolator violently self-destructs. 20427_ A7-43Z(j) destroyed. 20430_ Pest 3a destroyed. 20434_ Trooper 3b destroyed. 20436_ JO-II7(j) knocked back. 20438_ System corrupted: Matter fused (-10). 20438_ JO-II7(j) knocked back. 20440_ Machine disabled. 20441_ Scrap Suit violently self-destructs. 20441_ Scavenger 3a destroyed. 20442_ 42-1Z6(j) heat damages Ovr. Titanium Leg. 20442_ Supplies damaged. 20443_ JO-II7(j) heat damages Scrap Suit. 20446_ JO-II7(j) knocked back. 20447_ Machine disabled. 20451_ Savior 3b destroyed. Map ----- +----------------------------------------------------+ | | | | | | | | | | | | | | | | | | | | | | | | | | | | | | | | | | | | | | | | | | | ????????????????????#########????????????????????? | | ????????????????????#"""""""#????????????????????? | | ????????????????????# "=X %##%#?????????????????? | | ??????????????#######=%%= % #?????????????????? | | ?????????????##!!%=%/j|%&@ %%j#?????????????????? | | ?????????????# #####%!!*%= % "#?????????????????? | | ?????????????## #???#[=%*! "#?????????????????? | | ??????????????# #???#"&!"& X ""#?????????????????? | | ??????????????# #???#""""" "" #?????????????????? | | ???????????#### ################?????????????????? | | ???????????# #?????????????????????????????? | | ???????????# #?????????????????????????????? | | ####???????# #?????????????????????????????? | | #???????# #?????????????????????????????? | | #???????####+####?????????????????????????????? | | #??????????# #????????????????????????????????? | | #?########## #????????????????????????????????? | | [ #?# + #????????????????????????????????? | | #?# T """ ###????????????????????????????????? | | #?# """ #??????????????????????????????????? | | #?# """ #??????????????????????????????????? | | #?# #??????#######?????????????????????? | | !!#?# """ #??????# ###########???????????? | | #?# """ #??????# T #???????????? | | ###### """ #??????# "" #???????????? | | + #??????# #???????????? | | #######+#######??????# ####+#######??????????? | | #?????# #????????????## ##?# #??????????? | | #?????###???????????### #### "" #??????????? | +----------------------------------------------------+ Best States ------------- Heat Dissipation 39 Energy Generation 12 Energy Capacity 265 Matter Stores 300 Matter Capacity 300 Sight Range 16 Robot Scan Range 14 Terrain Scan Density 10 Resistance: KI 35 Resistance: TH 35 Resistance: EX 35 Resistance: EM 35 Resistance: I 35 Resistance: S 35 Resistance: P 35 Evasion (%) 50 Recoil Reduction 2 Offensive Hacking 20 Item Schematics ----------------- None Robot Schematics ------------------ None Fabricated ------------ Nothing Repaired ---------- Nothing Studied --------- None Alien Tech Used ----------------- None Achievements -------------- None Challenges ------------ None Game ------ Seed MobileHeavyFlakker Manual? 0 Play Time 00:28:11 Cumulative 288.2 hours Start 2026.01.16 @ 15:43:31 End 2026.01.16 @ 16:13:03 Sessions 1 Manual Loads 0 Difficulty Explorer Special Mode None Game No. 446 Rogue 0 Adventurer 0 Explorer 446 Win Type - Total 0 Types 0/0/0/0/0/0/0/0/0/0 Lore% 75 Gallery% 69 Achievement% 55 Wizard Run 0 Options --------- Layout 1 ASCII 0 Keyboard 0 Movement Mouse Keybinds 1 Fullscreen 1 Font 24/Smallcaps Map View 50x35 Zoom Use 0% Tactical HUD 1 Map Filters NONE Filters NONE Steam 1 RUN: df969d6f-ce6c-4644-9a27-efe9a0a8d32e